fUSD/lending_fUSD_20240903
["ID","MTS","AMOUNT","RATE_DAILY","PERIOD"]
[337036864,1725364232590,-780.51521767,0.0001489,2]
[337036865,1725364232600,-4252.0117,0.0001489,2]
[337036866,1725364232609,-10986.7987,0.0001489,2]
[337036867,1725364232619,-2048.2972,0.0001489,2]
[337036868,1725364232628,-4495.7358,0.0001489,2]
[337036869,1725364232637,-12221.9198,0.0001489,2]
[337036870,1725364232648,-1729.318,0.0001489,2]
[337036871,1725364232657,-1257.5934,0.00014899,2]
[337036872,1725364232667,-606.4471,0.000149,2]
[337036873,1725364232676,-7500.0,0.000149,2]
[337036874,1725364232685,-347.88459846,0.000149,2]
[337036875,1725364232695,-500.0,0.00014973,2]
[337036876,1725364232705,-150.0,0.00014986,2]
[337036877,1725364232715,-67156.4612408,0.0001499,2]
[337036878,1725364232725,-179083.896642,0.0001499,2]
[337036879,1725364232735,-3209.6135256,0.00014998,2]
[337036880,1725364232744,-3353.8858364,0.00014998,2]
[337036881,1725364232755,-11244.74306189,0.00014999,2]
[337036882,1725364232767,-2475.883476,0.00014999,2]
[337036883,1725364232779,-4000.0,0.00014999,2]
[337036884,1725364232810,-3125.27043744,0.00014999,2]
[337036885,1725364238086,-310.05281398,0.0001489,2]
[337036886,1725364238098,-2283.51462282,0.0001489,2]
[337036887,1725364238109,-9624.3217632,0.0001489,2]
[337036888,1725364238119,-2984.64145149,0.00014999,2]
[337036889,1725364238130,-2879.43368562,0.00014999,2]
[337036890,1725364238146,-282.20218153,0.00014999,2]
[337036891,1725364238157,-1503.75465679,0.00014999,2]
[337036892,1725364238168,-51749.44334765,0.00014999,2]
[337036893,1725364238181,-2212.02777319,0.00014999,2]
[337036894,1725364238193,-3742.70217563,0.00014999,2]
[337036895,1725364238223,-101924.66162391,0.00014999,2]
[337036896,1725364238234,-500.0,0.00014999,2]
[337036897,1725364238245,-3400.0,0.00014999,2]
[337036898,1725364238258,-1101.02903969,0.00014999,2]
[337036899,1725364238276,-3439.69542198,0.00014999,2]
[337036900,1725364238297,-7082.35051429,0.00014999,2]
[337036901,1725364238309,-729.17517403,0.00014999,2]
[337036902,1725364238320,-475.82133345,0.00014999,2]
[337036903,1725364238335,-1600.0,0.00014999,2]
[337036904,1725364238346,-667.57069182,0.00014999,2]
[337036905,1725364238357,-2976.02181235,0.00014999,2]
[337036906,1725364238466,-125237.0388803,0.00014999,2]
[337036907,1725364238477,-97226.37381542,0.00014999,2]
[337036908,1725364238486,-567.0,0.00015,2]
[337036909,1725364238495,-173740.40791443,0.00015,2]
[337036910,1725364238505,-52785.54436586,0.00015,2]
[337036911,1725364238516,-32234.58733742,0.00015,2]
[337036912,1725364238529,-1153.0,0.00015,2]
[337036913,1725364238540,-12759.24509833,0.00015,2]
[337036915,1725364238562,-534.02114835,0.00015,2]
[337036916,1725364238572,-424.88308538,0.00015,2]
[337037029,1725364240394,-490.86097119,0.00015,2]
[337037030,1725364240410,-1332.68018456,0.00015,2]
[337037031,1725364240657,-919.75999486,0.00015,2]
[337037033,1725364243047,-1197.56,0.00015,2]
[337037035,1725364244829,161.88,0.00010959,2]
[337037039,1725364513080,522.36,0.00012102,2]
[337037040,1725364765169,159.49,0.00010959,2]
[337037041,1725364997344,514.65,0.00012002,2]
[337037044,1725365432228,-1500.0,0.00013899,2]
[337037045,1725365432237,-250.0,0.00013915,2]
[337037046,1725365432247,-185.24,0.00013919,2]
[337037047,1725365432260,-213.51,0.00013926,2]
[337037048,1725365432270,-2703.36511911,0.00013933,2]
[337037049,1725365432425,-1072.67488089,0.00013933,2]
[337037050,1725365432434,-1434.52511911,0.00013974,2]
[337037051,1725365432445,-939.2,0.00013974,2]
[337037052,1725365432456,-2204.11316089,0.00013974,2]
[337037053,1725365432467,-1000.37172,0.00013974,2]
[337037054,1725365432478,-3409.57961677,0.00013974,2]
[337037069,1725365438313,-14902.21038323,0.00013974,2]
[337037070,1725365438323,-250.0,0.00014002,2]
[337037071,1725365438332,-1000.0,0.00014066,2]
[337037072,1725365438341,-214.76,0.00014152,2]
[337037073,1725365438350,-164.7,0.00014233,2]
[337037074,1725365438359,-1997.2,0.00014266,2]
[337037075,1725365438368,-299.99,0.00014266,2]
[337037076,1725365438377,-514.65,0.00014266,2]
[337037077,1725365438386,-10445.102,0.00014587,2]
[337037078,1725365438395,-150.0,0.00014599,2]
[337037079,1725365438404,-854.42,0.000146,2]
[337037080,1725365438415,-150.0,0.000146,2]
[337037081,1725365438425,-161.01,0.000146,2]
[337037082,1725365438434,-300.0,0.000146,2]
[337037083,1725365438443,-150.0,0.000146,2]
[337037084,1725365438453,-714.4,0.000146,2]
[337037085,1725365438462,-300.0,0.000146,2]
[337037086,1725365438471,-300.0,0.000146,2]
[337037087,1725365438480,-300.0,0.000146,2]
[337037088,1725365438489,-150.0,0.000146,2]
[337037089,1725365438498,-150.0,0.000146,2]
[337037090,1725365438507,-150.0,0.000146,2]
[337037091,1725365438519,-150.0,0.000146,2]
[337037092,1725365438527,-743.06186494,0.0001485,2]
[337037093,1725365438539,-310.87,0.0001485,2]
[337037094,1725365438548,-1016.321,0.00014851,2]
[337037095,1725365438557,-500.0,0.0001488,2]
[337037096,1725365438567,-170.124,0.00014887,2]
[337037097,1725365438576,-199.952,0.00014887,2]
[337037098,1725365438585,-557.0,0.00014887,2]
[337037099,1725365438594,-528.867,0.00014887,2]
[337037100,1725365438603,-4513.4936,0.0001489,2]
[337037101,1725365438613,-1765.2571,0.0001489,2]
[337037102,1725365438622,-12219.9045,0.0001489,2]
[337037103,1725365438631,-500.0,0.0001489,2]
[337037104,1725365438640,-1000.0,0.0001489,2]
[337037105,1725365438650,-1000.0,0.0001489,2]
[337037106,1725365438659,-5271.346074,0.000149,2]
[337037107,1725365438670,-2500.0,0.000149,2]
[337037108,1725365438679,-528.65627942,0.000149,2]
[337037109,1725365438688,-38942.5953,0.000149,2]
[337037110,1725365438698,-1000.0,0.000149,2]
[337037111,1725365438707,-500.0,0.00014973,2]
[337037112,1725365438717,-150.0,0.00014986,2]
[337037113,1725365438727,-96399.55102221,0.0001499,2]
[337037118,1725365442658,-10184.53535642,0.0001499,2]
[337037119,1725365442712,-592.615,0.0001499,2]
[337037120,1725365442823,-1542.50000025,0.0001499,2]
[337037123,1725365442981,-114661.90250212,0.0001499,2]
[337037124,1725365442991,-177.81575934,0.00014997,2]
[337037125,1725365443001,-177.81575934,0.00014997,2]
[337037126,1725365443011,-37875.7875838,0.00014998,2]
[337037127,1725365443020,-2960.9314527,0.00014998,2]
[337037128,1725365443030,-1664.80472325,0.00014999,2]
[337037129,1725365443039,-569.0,0.00015,2]
[337037130,1725365443048,-366882.30877759,0.00015,2]
[337037131,1725365443058,-5488644.27624742,0.00015,2]
[337037137,1725365443304,-765047.97122141,0.00015,2]
[337037138,1725365444360,-504.81882997,0.00015,2]
[337037139,1725365444371,-296.095,0.00015,2]
[337037141,1725365446241,-2129.89323735,0.00014897,2]
[337037143,1725365446251,-27475.10676265,0.00015,2]
[337037144,1725365446401,-339.1225,0.00015,2]
[337037145,1725365446412,-6051.60558773,0.00015,2]
[337037146,1725365504776,463.18,0.00012015,2]
[337037148,1725366037273,440.02,0.0001205,2]
[337037168,1725366632665,-250.0,0.00013402,2]
[337037169,1725366632676,-438.0,0.00013433,2]
[337037170,1725366632686,-479.0,0.00013434,2]
[337037171,1725366632696,-250.0,0.00013464,2]
[337037172,1725366632705,-1000.0,0.00013486,2]
[337037173,1725366632714,-213.51,0.00013493,2]
[337037174,1725366632723,-315.77,0.00013968,2]
[337037175,1725366632734,-315.77,0.00013972,2]
[337037176,1725366632745,-315.77,0.00013975,2]
[337037177,1725366632755,-315.77,0.00013979,2]
[337037178,1725366632766,-315.77,0.00013983,2]
[337037179,1725366632776,-315.77,0.00013986,2]
[337037180,1725366632786,-315.77,0.0001399,2]
[337037181,1725366632795,-315.77,0.00013994,2]
[337037182,1725366632806,-315.77,0.00013997,2]
[337037183,1725366632814,-315.77,0.00014001,2]
[337037184,1725366632823,-315.77,0.00014005,2]
[337037185,1725366632832,-315.77,0.00014008,2]
[337037186,1725366632841,-315.77,0.00014012,2]
[337037187,1725366632850,-315.77,0.00014016,2]
[337037188,1725366632859,-315.77,0.00014019,2]
[337037189,1725366632868,-315.77,0.00014023,2]
[337037190,1725366632878,-315.77,0.00014027,2]
[337037191,1725366632888,-315.77,0.0001403,2]
[337037192,1725366632898,-300.0,0.00014034,2]
[337037193,1725366632909,-315.77,0.00014034,2]
[337037194,1725366632917,-315.77,0.00014038,2]
[337037195,1725366632927,-251.8,0.00014171,2]
[337037196,1725366632936,-440.02,0.00014314,2]
[337037197,1725366632948,-3706.0,0.00014605,2]
[337037198,1725366632958,-1462.0,0.000147,2]
[337037199,1725366632968,-12219.9045,0.0001489,2]
[337037200,1725366632977,-2862.64419895,0.0001489,2]
[337037201,1725366632986,-1260.3533,0.0001489,2]
[337037202,1725366633177,-457.2648,0.000149,2]
[337037203,1725366633200,-26499.56871357,0.000149,2]
[337037204,1725366633211,-248.696,0.000149,2]
[337037205,1725366633221,-813.057,0.000149,2]
[337037206,1725366633230,-500.0,0.00014973,2]
[337037207,1725366633240,-150.0,0.00014986,2]
[337037208,1725366633250,-21757.80313748,0.00014989,4]
[337037209,1725366633275,-26569.96733102,0.00014989,4]
[337037210,1725366638402,-2862.64419895,0.00014891,2]
[337037211,1725366638412,-2862.64419895,0.00014892,2]
[337037212,1725366638421,-20069.18729189,0.00014989,4]
[337037213,1725366638553,-112226.12899082,0.00014989,4]
[337037244,1725366640326,-661.57577316,0.00014989,4]
[337037258,1725366644363,-2862.64419895,0.00014893,2]
[337037259,1725366644373,-500.0,0.00014973,2]
[337037260,1725366644382,-143.47580105,0.00014989,4]
[337037261,1725366646430,-450.23514136,0.000149,2]
[337037262,1725366678583,426.73,0.00012327,2]
[337037263,1725367021040,161.88,0.00010959,2]
[337037264,1725367170735,405.39,0.00012111,2]
[337037265,1725367515960,159.49,0.00010959,2]
[337037267,1725367706927,385.12,0.0001198,2]
[337037271,1725367820237,550.0,0.00011,2]
[337037274,1725367831559,-300.0,0.00013876,2]
[337037275,1725367831569,-1030.37222806,0.00013877,2]
[337037276,1725367831680,-2962.57694208,0.00013877,2]
[337037277,1725367831699,-4318.1251668,0.00013877,2]
[337037278,1725367831710,-4054.52126582,0.00013877,2]
[337037279,1725367831722,-4796.58478385,0.00013877,2]
[337037281,1725367831734,-1956.37593354,0.00013877,2]
[337037283,1725367832301,-3078.55932045,0.00013877,2]
[337037284,1725367832312,-1682.8843594,0.00013877,2]
[337037285,1725367832322,-1308.0,0.000139,3]
[337037286,1725367832331,-201.44,0.00013929,2]
[337037287,1725367832340,-250.0,0.00013931,2]
[337037288,1725367832350,-648.32500001,0.00013931,2]
[337037289,1725367832360,-250.0,0.00013933,2]
[337037290,1725367832370,-800.0,0.00013933,2]
[337037291,1725367832379,-1922.72143864,0.00014,2]
[337037292,1725367832391,-1161.35257624,0.00014,2]
[337037293,1725367832403,-1184.24886143,0.00014,2]
[337037294,1725367832416,-368.7704374,0.00014,2]
[337037297,1725367837650,-6435.4781339,0.00014,2]
[337037298,1725367837662,-161.82606896,0.00014,2]
[337037299,1725367837675,-222.21274689,0.00014,2]
[337037300,1725367837684,-200.0,0.00014012,2]
[337037301,1725367837693,-198.56,0.00014053,2]
[337037302,1725367837703,-385.12,0.00014243,2]
[337037303,1725367837713,-150.0,0.00014356,2]
[337037304,1725367837721,-955.24593257,0.0001484,2]
[337037305,1725367837743,-2044.75406743,0.0001484,2]
[337037306,1725367837751,-198.957,0.0001485,2]
[337037307,1725367837760,-633.03266898,0.00014875,2]
[337037308,1725367837769,-150.0,0.00014885,2]
[337037309,1725367837778,-557.0,0.00014886,2]
[337037310,1725367837787,-1921.0,0.00014886,2]
[337037311,1725367837796,-281.036,0.00014886,2]
[337037312,1725367837805,-150.0,0.00014886,2]
[337037313,1725367837814,-6460.3544,0.00014886,2]
[337037314,1725367837823,-650.445,0.00014887,2]
[337037315,1725367837832,-12219.0666,0.00014889,2]
[337037316,1725367837841,-671.7023,0.0001489,2]
[337037317,1725367837850,-1042.82855514,0.00014892,2]
[337037318,1725367837861,-674.75796423,0.00014892,2]
[337037319,1725367837871,-1717.58651937,0.00014893,2]
[337037320,1725367837880,-1717.58651937,0.00014894,2]
[337037321,1725367837893,-1717.58651937,0.00014895,2]
[337037322,1725367837903,-1717.58651937,0.00014896,2]
[337037323,1725367837913,-1717.58651937,0.00014896,2]
[337037324,1725367837922,-1717.58651937,0.00014897,2]
[337037325,1725367837931,-1717.58651937,0.00014898,2]
[337037326,1725367837941,-1717.58651937,0.00014899,2]
[337037327,1725367837950,-2989.59,0.000149,5]
[337037328,1725367837962,-347.88459846,0.000149,2]
[337037329,1725367837972,-150.64314435,0.00014973,2]
[337037330,1725367837988,-349.35685565,0.00014973,2]
[337037331,1725367837997,-150.0,0.00014986,2]
[337037332,1725367838006,-6536.11241892,0.00014989,4]
[337037333,1725367838017,-343.85707999,0.00014989,4]
[337037334,1725367838028,-23786.8659421,0.00014989,4]
[337037335,1725367838046,-1759.48135128,0.00014989,4]
[337037337,1725367838142,-3133.92547311,0.00014989,4]
[337037338,1725367838153,-398.82036052,0.00014989,4]
[337037339,1725367838166,-2852.38436042,0.00014989,4]
[337037340,1725367838178,-200.0,0.00014989,2]
[337037341,1725367838188,-6205.18100658,0.0001499,2]
[337037342,1725367838225,-795.2682055,0.0001499,2]
[337037343,1725367838236,-1007.38297438,0.0001499,2]
[337037344,1725367838248,-553.81291,0.0001499,2]
[337037345,1725367838257,-121.73522812,0.0001499,2]
[337037346,1725367839579,-496.07624443,0.0001499,2]
[337037347,1725367839591,-469.15633706,0.0001499,2]
[337037348,1725367839602,-314.91173344,0.0001499,2]
[337037349,1725367839614,-630.775,0.0001499,2]
[337037350,1725367839625,-588.950825,0.0001499,2]
[337037351,1725367839636,-328.47396994,0.0001499,2]
[337037352,1725367839647,-1060.86500547,0.0001499,2]
[337037353,1725367839776,-5307.9,0.0001499,2]
[337037354,1725367839787,-711.24,0.0001499,2]
[337037355,1725367839833,-2767.46755076,0.000149,2]
[337037356,1725367839842,-101271.30191054,0.0001499,2]
[337037357,1725367839852,-245.05,0.00014991,2]
[337037358,1725367839861,-150.0,0.00014991,2]
[337037359,1725367839870,-150.01,0.00014999,2]
[337037360,1725367839879,-2910.22935818,0.00014999,2]
[337037361,1725367839891,-512.0,0.00015,2]
[337037362,1725367839900,-444484.081994,0.00015,2]
[337037363,1725367839909,-4601317.48402636,0.00015,2]
[337037364,1725367839920,-201332.05261757,0.00015,2]
[337037365,1725367839932,-228795.93175319,0.00015,2]
[337037434,1725367842779,-1717.58651937,0.000149,2]
[337037435,1725367842788,-13112.18353026,0.00015,2]
[337037436,1725367842799,-659.44059965,0.00015,2]
[337037437,1725367842811,-641.85958326,0.00015,2]
[337037438,1725367842822,-302.23,0.00015,2]
[337037439,1725367842833,-300.1,0.00015,2]
[337037440,1725367842845,-307.38558639,0.00015,2]
[337037441,1725367842856,-274.264,0.00015,2]
[337037443,1725367842867,-309.865,0.00015,2]
[337037445,1725367842886,-2057.28,0.00015,2]
[337037446,1725367842911,-1045.14,0.00015,2]
[337037447,1725367842922,-647.46735558,0.00015,2]
[337037448,1725367843558,-392.857998,0.00015,2]
[337037449,1725367843569,-731.82514652,0.00015,2]
[337037450,1725367843587,-826.64350137,0.00015,2]
[337037451,1725367843598,-5060.0,0.00015,2]
[337037452,1725367843609,-12049.2324329,0.00015,2]
[337037453,1725367843620,-12178.28593014,0.00015,2]
[337037454,1725367843631,-11072.78688,0.00015,2]
[337037455,1725367843642,-536.28001313,0.00015,2]
[337037456,1725367843653,-30000.0,0.00015,2]
[337037459,1725367845547,-606.13570382,0.00015,2]
[337037460,1725367845565,-6646.89595268,0.00015,2]
[337037461,1725367845733,-1710.75555846,0.00015,2]
[337037462,1725367845751,-926.66902096,0.00015,2]
[337037463,1725367845768,-2635.15652636,0.00015,2]
[337037464,1725367845785,-1033.59720923,0.00015,2]
[337037465,1725367845801,-432.87434618,0.00015,2]
[337037466,1725367845842,-276.57496315,0.00015,2]
[337037467,1725367845859,-837.1615839,0.00015,2]
[337037468,1725367845876,-1654.41427958,0.00015,2]
[337037469,1725367845897,-789.18618,0.00015,2]
[337037470,1725367845917,-690.60504577,0.00015,2]
[337037471,1725367845936,-452430.20922664,0.00015,2]
[337037472,1725367845953,-8563.99436159,0.00015,2]
[337037473,1725367845973,-3771.1639511,0.00015,2]
[337037474,1725367845991,-1221.72,0.00015,2]
[337037475,1725367846002,-456.80005735,0.00015,2]
[337037476,1725367846013,-1226.70496936,0.00015,2]
[337037477,1725367846024,-1568.92074396,0.00015,2]
[337037478,1725367846051,-4506.06258621,0.00015,2]
[337037479,1725367846311,-642.34459641,0.00015,2]
[337037480,1725367846327,-873.80203649,0.00015,2]
[337037481,1725367846339,-305.0,0.00015,2]
[337037482,1725367846351,-2192.36880359,0.00015,2]
[337037483,1725367846374,-270.462826,0.00015,2]
[337037484,1725367846386,-1748.9835148,0.00015,2]
[337037485,1725367846397,-515.25,0.00015,2]
[337037486,1725367846409,-1289.4108312,0.00015,2]
[337037487,1725367846422,-4107.87899242,0.00015,2]
[337037488,1725367846433,-1073.61091901,0.00015,2]
[337037489,1725367846445,-1408.82174182,0.00015,2]
[337037491,1725368711150,4319.0,0.00013333,15]
[337037497,1725368844760,424.46,0.00012211,2]
[337037499,1725369031645,-436.64173545,0.00014083,2]
[337037500,1725369031656,-563.35826455,0.00014083,2]
[337037501,1725369031666,-250.0,0.00014221,2]
[337037502,1725369031676,-250.0,0.00014306,2]
[337037503,1725369031687,-1481.81,0.00014336,2]
[337037504,1725369031696,-990.62191593,0.00014475,2]
[337037505,1725369031706,-424.46,0.00014475,2]
[337037506,1725369031716,-2690.33007,0.0001485,2]
[337037507,1725369031725,-1649.04581237,0.00014887,2]
[337037508,1725369031737,-271.95418763,0.00014887,2]
[337037509,1725369031747,-630.77500025,0.00014979,2]
[337037510,1725369031757,-150.0,0.00014986,2]
[337037511,1725369031767,-300.0,0.00014988,2]
[337037512,1725369031778,-6056.60837724,0.00014989,4]
[337037513,1725369031795,-450.037073,0.00014989,4]
[337037514,1725369031812,-11316.72602082,0.00014989,4]
[337037515,1725369031825,-261.15578167,0.00014989,4]
[337037516,1725369031837,-517.85068696,0.00014989,4]
[337037517,1725369031849,-160358.39254846,0.00014989,4]
[337037518,1725369031876,-297.99594133,0.00014989,4]
[337037519,1725369031888,-3256.74546623,0.00014989,4]
[337037520,1725369031899,-31255.64096234,0.00014989,4]
[337037521,1725369031915,-1117.22136038,0.00014989,4]
[337037522,1725369031927,-2375.16069498,0.00014989,4]
[337037524,1725369031938,-3244.15518752,0.00014989,4]
[337037548,1725369037777,-1173.65274454,0.00014989,4]
[337037549,1725369037789,-564.6051735,0.00014989,4]
[337037550,1725369037801,-55498.09177121,0.00014989,4]
[337037551,1725369037824,-2036.67933424,0.00014989,4]
[337037552,1725369037837,-486.81726003,0.00014989,4]
[337037553,1725369037848,-4538.33381839,0.00014989,4]
[337037554,1725369037859,-303.35364713,0.00014989,4]
[337037555,1725369037890,-363.36826249,0.00014989,4]
[337037556,1725369037902,-7544.50302701,0.00014989,4]
[337037557,1725369037913,-2074.50000001,0.00014989,4]
[337037558,1725369037925,-301.11415239,0.00014989,4]
[337037559,1725369037984,-368.6898118,0.00014989,4]
[337037560,1725369037996,-716.53939924,0.00014989,4]
[337037561,1725369038007,-6904.82972179,0.00014989,4]
[337037562,1725369038018,-10441.17998013,0.00014989,4]
[337037563,1725369038030,-200604.30330072,0.00014989,4]
[337037564,1725369038052,-28119.1141531,0.00014989,4]
[337037565,1725369038063,-1041.07666733,0.00014989,4]
[337037566,1725369038074,-21049.79701956,0.00014989,4]
[337037567,1725369038085,-280.407,0.00014989,4]
[337037568,1725369038098,-257.82237684,0.00014989,4]
[337037569,1725369038108,-2985.87980087,0.00014989,4]
[337037570,1725369038120,-426.35735425,0.00014989,4]
[337037571,1725369038131,-16602.28958187,0.00014989,4]
[337037572,1725369038142,-767.54721912,0.00014989,4]
[337037713,1725369039692,-4439.59627426,0.00014989,4]
[337037715,1725369039703,-1226.66149548,0.00014989,4]
[337037724,1725369039858,-26562.30521915,0.00014989,4]
[337037731,1725369039916,-10352.58655339,0.00014989,4]
[337037733,1725369039928,-1583.02640053,0.00014989,4]
[337037735,1725369039940,-1730.32425122,0.00014989,4]
[337037746,1725369040036,-1591667.13576471,0.00014989,4]
[337037748,1725369040045,-247.62511432,0.00014989,2]
[337037750,1725369040054,-520.356,0.0001499,2]
[337037751,1725369040064,-159.166,0.0001499,2]
[337037753,1725369040073,-150.21144922,0.00014997,2]
[337037755,1725369040082,-5040.7243639,0.00014998,2]
[337037757,1725369040097,-213.33630603,0.00014999,2]
[337037759,1725369040107,-291.02293582,0.00014999,2]
[337037761,1725369040116,-150.0,0.00014999,2]
[337037763,1725369040125,-468034.66930128,0.00015,2]
[337037765,1725369040134,-4120945.1577338,0.00015,2]
[337037771,1725369040181,-538.38226174,0.00015,2]
[337037773,1725369040192,-929.69756777,0.00015,2]
[337037775,1725369040202,-500.0,0.00015,2]
[337038030,1725369042727,-4078.9714258,0.00015,2]
[337038032,1725369042739,-38532.7306735,0.00015,2]
[337038034,1725369042751,-8679.59506081,0.00015,2]
[337038039,1725369042783,-391.22403067,0.00015,2]
[337038041,1725369042795,-1011.21766666,0.00015,2]
[337038043,1725369042806,-4514.99947003,0.00015,2]
[337038161,1725369044336,-1605.35180376,0.00015,2]
[337038162,1725369044351,-1000.0,0.00015,2]
[337038170,1725369045698,-291.02293582,0.00014999,2]
[337038171,1725369045708,-1003.6166127,0.00015,2]
[337038172,1725369045818,-3648.9525255,0.00015,2]
[337038173,1725369045989,-708.1,0.00015,2]
[337038174,1725369046001,-187718.37418976,0.00015,2]
[337038175,1725369046012,-2660.46376001,0.00015,2]
[337038176,1725369423887,508.73,0.00012029,2]
[337038182,1725369622691,550.0,0.00011,2]
[337038183,1725369623776,600.0,0.00013,2]
[337038184,1725369625877,286.8,0.00010959,2]
[337038186,1725370133599,161.88,0.00010959,2]
[337038187,1725370138519,483.29,0.00011861,2]
[337038196,1725370231805,-172.73,0.00013699,2]
[337038197,1725370231815,-250.0,0.00013735,2]
[337038198,1725370231824,-1210.86,0.00013746,2]
[337038199,1725370231833,-200.0,0.00013764,2]
[337038200,1725370231841,-2439.19728964,0.00013765,2]
[337038201,1725370231869,-299.6900001,0.00013765,2]
[337038202,1725370231881,-12.11271026,0.00013765,2]
[337038203,1725370231891,-200.0,0.00013775,2]
[337038204,1725370231901,-708.41,0.00013788,2]
[337038205,1725370231910,-184.0,0.0001381,2]
[337038206,1725370231919,-247.42325252,0.00013811,2]
[337038207,1725370231933,-252.57674748,0.00013811,2]
[337038208,1725370231942,-250.0,0.00013815,2]
[337038209,1725370231951,-161.16,0.00013815,2]
[337038210,1725370231961,-1000.0,0.00013815,2]
[337038211,1725370231970,-606.64,0.00013815,2]
[337038212,1725370231980,-1200.0,0.00013972,2]
[337038213,1725370231990,-1200.0,0.00013972,2]
[337038214,1725370232000,-499.99,0.00014031,2]
[337038215,1725370232010,-1689.48,0.00014031,2]
[337038216,1725370232020,-657.38307111,0.00014031,2]
[337038217,1725370232031,-228.51692889,0.00014031,2]
[337038218,1725370232040,-578.08118553,0.00014031,2]
[337038219,1725370232052,-889.15149544,0.00014031,2]
[337038220,1725370232064,-250.0,0.00014031,2]
[337038221,1725370232075,-562.4996314,0.00014031,2]
[337038222,1725370232235,-244.00768763,0.00014031,2]
[337038223,1725370232253,-483.29,0.00014125,2]
[337038224,1725370232263,-158.84,0.00014145,2]
[337038225,1725370232272,-150.0,0.00014378,2]
[337038226,1725370232282,-150.0,0.00014378,2]
[337038227,1725370232291,-208.17,0.00014378,2]
[337038229,1725370232299,-708.41,0.00014478,2]
[337038231,1725370232309,-300.0,0.00014478,2]
[337038233,1725370232318,-150.0,0.00014478,2]
[337038234,1725370232326,-150.0,0.00014478,2]
[337038235,1725370232335,-150.0,0.00014478,2]
[337038236,1725370232344,-150.0,0.00014478,2]
[337038237,1725370232354,-150.0,0.00014742,2]
[337038238,1725370232363,-150.0,0.00014745,2]
[337038239,1725370232372,-150.0,0.00014756,2]
[337038240,1725370232381,-150.0,0.00014759,2]
[337038242,1725370232390,-150.0,0.00014769,2]
[337038244,1725370232399,-150.0,0.00014773,2]
[337038246,1725370232408,-150.0,0.00014777,2]
[337038248,1725370232417,-150.0,0.00014779,2]
[337038250,1725370232427,-150.0,0.00014779,2]
[337038252,1725370232442,-150.0,0.00014787,2]
[337038254,1725370232456,-150.0,0.00014788,2]
[337038256,1725370232465,-150.0,0.00014792,2]
[337038258,1725370232474,-386.164982,0.00014795,2]
[337038260,1725370232484,-150.0,0.00014796,2]
[337038262,1725370232493,-150.0,0.00014797,2]
[337038264,1725370232502,-150.0,0.00014807,2]
[337038266,1725370232511,-150.0,0.00014821,2]
[337038267,1725370232520,-5800.0,0.00014823,2]
[337038269,1725370232529,-5800.0,0.00014832,2]
[337038271,1725370232538,-150.0,0.00014832,2]
[337038273,1725370232547,-150.0,0.00014833,2]
[337038275,1725370232556,-5800.0,0.00014841,2]
[337038277,1725370232565,-303.03020671,0.00014844,2]
[337038279,1725370232574,-150.0,0.00014847,2]
[337038281,1725370232583,-5800.0,0.00014849,2]
[337038282,1725370232593,-1500.0,0.00014854,2]
[337038283,1725370232602,-5800.0,0.00014858,2]
[337038284,1725370232611,-1500.0,0.00014863,2]
[337038285,1725370232621,-150.0,0.00014864,2]
[337038286,1725370232630,-5800.0,0.00014866,2]
[337038287,1725370232639,-5800.0,0.00014874,2]
[337038288,1725370232648,-150.0,0.00014876,2]
[337038289,1725370232658,-8500.0,0.00014882,2]
[337038290,1725370232667,-35000.0,0.00014882,2]
[337038291,1725370232677,-5800.0,0.00014883,2]
[337038292,1725370232691,-1005.1379,0.00014889,2]
[337038293,1725370232700,-39859.97288862,0.00014889,2]